[Event "Moscow-Open 2021_A"]
[Site "Moscow, Russia"]
[Date "2021.02.20"]
[Round "1.1"]
[White "Bocharov, Ivan"]
[Black "Israfilov, Ali"]
[Result "1-0"]
[ECO "B00"]
[WhiteElo "2568"]
[BlackElo "1981"]
[Annotator "zimin"]
[PlyCount "101"]
[EventDate "2021.??.??"]
[TimeControl "90+30"]
[WhiteClock "0:06:10"]
[BlackClock "0:22:16"]

{[%evp 0,70,22,13,29,13,92,75,104,76,79,52,133,111,98,89,99,90,164,143,106,91,
148,127,83,43,45,16,34,25,27,40,111,-19,-32,-17,-17,-2,11,-15,22,-29,37,69,69,
63,53,53,93,9,96,41,77,55,55,55,56,39,47,35,75,33,33,51,79,64,64,26,37,0,0,-36,
-11]} 1. e4 {[%emt 0:00:00]} Nc6 {[%emt 0:00:00]} 2. Nf3 {[%emt 0:00:00]} d6 {
[%emt 0:00:00]} 3. d4 {[%emt 0:00:00]} Bg4 {[%emt 0:00:00]} 4. Bb5 {[%emt 0:00:
00]} Nf6 {[%emt 0:00:00]} 5. h3 {[%emt 0:00:00]} Bh5 {[%emt 0:00:00]} 6. Nc3 {
[%emt 0:00:00]} a6 {[%emt 0:00:00]} 7. Ba4 {[%emt 0:00:00]} Nd7 {[%emt 0:00:00]
} 8. d5 {[%emt 0:00:00]} Ncb8 {[%emt 0:00:00]} 9. a3 {[%emt 0:00:00]} b5 {
[%emt 0:00:00]} 10. Bb3 {[%emt 0:00:00]} c5 {[%emt 0:00:00]} 11. dxc6 {[%emt 0:
00:00]} Nxc6 {[%emt 0:00:00]} 12. Qd5 {[%emt 0:00:00]} Nce5 {[%emt 0:00:00]}
13. Nxe5 {[%emt 0:00:00]} dxe5 {[%emt 0:00:00]} 14. Bg5 {[%emt 0:00:00]} h6 {
[%emt 0:00:00]} 15. Bh4 {[%emt 0:00:00]} Rc8 {[%emt 0:00:00]} 16. a4 {[%emt 0:
00:00]} b4 {[%emt 0:00:00]} 17. Na2 {[%emt 0:00:00]} g5 {[%emt 0:00:00]} 18.
Bg3 {[%emt 0:00:00]} e6 {[%emt 0:00:00]} 19. Qd3 {[%emt 0:00:00]} Qa5 {[%emt 0:
00:00]} 20. h4 {[%emt 0:00:00]} Bg7 {[%emt 0:00:00]} 21. hxg5 hxg5 {[%emt 0:00:
00]} 22. Qd2 {[%emt 0:00:00]} Bg6 {[%emt 0:00:00]} 23. Rxh8+ {[%emt 0:00:00]}
Bxh8 {[%emt 0:00:00]} 24. Qxg5 {[%emt 0:00:00]} Nc5 {[%emt 0:00:00]} 25. Bh4 {
[%emt 0:00:00]} Kf8 {[%emt 0:00:00]} 26. Qe7+ {[%emt 0:00:00]} Kg8 {[%emt 0:00:
00]} 27. f3 {[%emt 0:00:00]} Bg7 {[%emt 0:00:00]} 28. Rd1 {[%emt 0:00:00]} Bf8
{[%emt 0:00:00]} 29. Rd8 {[%emt 0:00:00]} Rxd8 {[%emt 0:00:00]} 30. Qxd8 {
[%emt 0:00:00]} Nxb3 {[%emt 0:00:00]} 31. cxb3 {[%emt 0:00:00]} Qc5 {[%emt 0:
00:00]} 32. Kf1 {[%emt 0:00:00]} a5 {[%emt 0:00:00]} 33. Bf6 {[%emt 0:00:00]}
Kh7 {[%emt 0:00:00]} 34. Qd1 {[%emt 0:00:00]} Qe3 {[%emt 0:00:00]} 35. Qe1 {
[%emt 0:00:00]} Qd3+ {[%emt 0:00:00]} 36. Kg1 {[%emt 0:00:00]} Kg8 {[%emt 0:00:
00]} 37. Bxe5 {[%emt 0:02:19]} Qxb3 {[%emt 0:00:00]} 38. Nc1 {[%emt 0:00:09]}
Qxa4 {[%emt 0:00:00]} 39. Nd3 {[%emt 0:00:40]} Bg7 {[%emt 0:00:00]} 40. Bxg7 {
[%emt 0:01:07]} Kxg7 {[%emt 0:00:00]} 41. Qe3 {[%emt 0:00:12]} Qb5 {[%emt 0:00:
00]} 42. Qd4+ {[%emt 0:02:12]} f6 {[%emt 0:00:00]} 43. Nc5 {[%emt 0:00:10]} Qc6
{[%emt 0:00:00]} 44. e5 {[%emt 0:00:34]} fxe5 {[%emt 0:00:00]} 45. Qxe5+ {
[%emt 0:00:01]} Kf7 {[%emt 0:00:00]} 46. Kf2 {[%emt 0:00:53]} Qb6 {[%emt 0:00:
00]} 47. b3 {[%emt 0:04:17]} Qc6 {[%emt 0:00:00]} 48. g4 {[%emt 0:01:38]} Ke7 {
[%emt 0:00:00]} 49. Ke3 {[%emt 0:00:14]} Bc2 {[%emt 0:00:00]} 50. f4 {[%emt 0:
01:34]} Bd1 {[%emt 0:04:14]} 51. f5 {[%emt 0:04:50]} 1-0

[Event "Moscow-Open 2021_A"]
[Site "Moscow, Russia"]
[Date "2021.02.20"]
[Round "1.2"]
[White "Pestryakov, Nikita"]
[Black "Rozum, Ivan"]
[Result "0-1"]
[ECO "B14"]
[WhiteElo "1978"]
[BlackElo "2546"]
[Annotator "zimin"]
[PlyCount "56"]
[EventDate "2021.??.??"]
[TimeControl "90+30"]
[WhiteClock "0:16:45"]
[BlackClock "0:56:51"]

{[%evp 0,52,22,13,83,56,62,74,74,13,-1,-1,40,33,47,-41,22,1,14,-66,-5,34,43,19,
49,39,38,43,54,17,41,90,75,71,81,10,33,-25,0,-16,-10,-12,-31,-194,-191,-185,
-182,-223,-215,-213,-219,-198,-221,-226,-286]} 1. e4 {[%emt 0:00:00]} c6 {
[%emt 0:00:00]} 2. d4 {[%emt 0:00:00]} d5 {[%emt 0:00:00]} 3. exd5 {[%emt 0:00:
00]} cxd5 {[%emt 0:00:00]} 4. c4 {[%emt 0:00:00]} Nf6 {[%emt 0:00:00]} 5. Nc3 {
[%emt 0:00:00]} e6 {[%emt 0:00:00]} 6. Nf3 {[%emt 0:00:00]} Bb4 {[%emt 0:00:00]
} 7. cxd5 {[%emt 0:00:00]} Nxd5 {[%emt 0:00:00]} 8. Qc2 {[%emt 0:00:00]} Nc6 {
[%emt 0:00:00]} 9. Bd3 {[%emt 0:00:00]} Be7 {[%emt 0:00:00]} 10. a3 {[%emt 0:
00:00]} Nf6 {[%emt 0:00:00]} 11. O-O {[%emt 0:00:00]} O-O {[%emt 0:00:00]} 12.
Be3 {[%emt 0:00:00]} Bd7 {[%emt 0:00:00]} 13. Rad1 {[%emt 0:00:00]} Qa5 {
[%emt 0:00:00]} 14. Ne5 {[%emt 0:00:00]} Rfd8 {[%emt 0:00:00]} 15. b4 {[%emt 0:
00:00]} Qc7 {[%emt 0:00:00]} 16. Ne4 {[%emt 0:00:00]} Nd5 {[%emt 0:00:00]} 17.
Ng5 {[%emt 0:00:00]} Nxe5 {[%emt 0:00:00]} 18. Qxc7 {[%emt 0:00:00]} Nxc7 {
[%emt 0:00:00]} 19. dxe5 {[%emt 0:00:00]} h6 {[%emt 0:00:00]} 20. Ne4 {[%emt 0:
00:00]} Bc6 {[%emt 0:00:00]} 21. Bc5 {[%emt 0:00:00]} Rxd3 {[%emt 0:00:00]} 22.
Rxd3 {[%emt 0:00:00]} Bxe4 {[%emt 0:00:00]} 23. Rd7 {[%emt 0:00:00]} Bxc5 {
[%emt 0:00:00]} 24. bxc5 {[%emt 0:00:00]} Rc8 {[%emt 0:00:00]} 25. Rfd1 {
[%emt 0:00:00]} Bd5 {[%emt 0:00:00]} 26. h4 {[%emt 0:00:00]} Kf8 {[%emt 0:00:
00]} 27. a4 {[%emt 0:00:00]} Ke8 {[%emt 0:00:00]} 28. Rd6 {[%emt 0:00:00]} Ke7
{[%emt 0:00:00]} 0-1

[Event "Moscow-Open 2021_A"]
[Site "Moscow, Russia"]
[Date "2021.02.20"]
[Round "1.3"]
[White "Chertkov, Maksim"]
[Black "Afanasiev, Nikita"]
[Result "0-1"]
[ECO "B06"]
[WhiteElo "1972"]
[BlackElo "2519"]
[Annotator "zimin"]
[PlyCount "144"]
[EventDate "2021.??.??"]
[TimeControl "90+30"]
[WhiteClock "0:04:27"]
[BlackClock "0:09:25"]

{[%evp 0,72,30,13,76,69,79,94,118,110,107,90,132,77,108,99,45,34,20,17,46,-22,
-10,-21,5,-12,36,36,36,28,69,57,82,61,58,35,60,60,60,45,45,32,36,42,42,33,48,
48,48,22,100,45,107,64,68,68,56,-9,12,2,2,2,-17,-25,-33,-33,-30,-22,-32,-58,
-44,-85,-79,-108,-59]} 1. e4 {[%emt 0:00:00]} g6 {[%emt 0:00:00]} 2. d4 {
[%emt 0:00:00]} Bg7 {[%emt 0:00:00]} 3. Nc3 {[%emt 0:00:00]} a6 {[%emt 0:00:00]
} 4. Nf3 {[%emt 0:00:00]} d6 {[%emt 0:00:00]} 5. Bc4 {[%emt 0:00:00]} e6 {
[%emt 0:00:00]} 6. Bb3 {[%emt 0:00:00]} b5 {[%emt 0:00:00]} 7. a3 {[%emt 0:00:
00]} Nd7 {[%emt 0:00:00]} 8. Bg5 {[%emt 0:00:00]} Ne7 {[%emt 0:00:00]} 9. Qd2 {
[%emt 0:00:00]} h6 {[%emt 0:00:00]} 10. Bf4 {[%emt 0:00:00]} Bb7 {[%emt 0:00:
00]} 11. O-O {[%emt 0:00:00]} Nf6 {[%emt 0:00:00]} 12. Rfe1 {[%emt 0:00:00]} c5
{[%emt 0:00:00]} 13. dxc5 {[%emt 0:00:00]} dxc5 {[%emt 0:00:00]} 14. Qe3 {
[%emt 0:00:00]} c4 {[%emt 0:00:00]} 15. Rad1 {[%emt 0:00:00]} Qc8 {[%emt 0:00:
00]} 16. Ba2 {[%emt 0:00:00]} O-O {[%emt 0:00:00]} 17. h3 {[%emt 0:00:00]} Kh7
{[%emt 0:00:00]} 18. Bd6 {[%emt 0:00:00]} Re8 {[%emt 0:00:00]} 19. Ne5 {
[%emt 0:00:00]} Kg8 {[%emt 0:00:00]} 20. f4 {[%emt 0:00:00]} Nc6 {[%emt 0:00:
00]} 21. Nf3 {[%emt 0:00:00]} Ne7 {[%emt 0:00:00]} 22. a4 {[%emt 0:00:00]} Nd7
{[%emt 0:00:00]} 23. Ba3 {[%emt 0:00:00]} Bc6 {[%emt 0:00:00]} 24. Nd4 {
[%emt 0:00:00]} e5 {[%emt 0:00:00]} 25. Nxc6 {[%emt 0:00:00]} Nxc6 {[%emt 0:00:
00]} 26. axb5 {[%emt 0:00:00]} Nd4 {[%emt 0:00:00]} 27. Qf2 {[%emt 0:00:00]}
Nxb5 {[%emt 0:00:00]} 28. Nd5 {[%emt 0:00:00]} Nxa3 {[%emt 0:00:00]} 29. bxa3 {
[%emt 0:00:00]} exf4 {[%emt 0:00:00]} 30. Qxf4 {[%emt 0:00:00]} Qc5+ {[%emt 0:
01:20]} 31. Qf2 {[%emt 0:00:00]} Qxf2+ {[%emt 0:02:05]} 32. Kxf2 {[%emt 0:00:
00]} Rac8 {[%emt 0:00:05]} 33. Rb1 {[%emt 0:00:00]} Nc5 {[%emt 0:04:10]} 34.
Kf3 {[%emt 0:00:00]} Ne6 {[%emt 0:00:21]} 35. Nb6 {[%emt 0:10:19]} Ng5+ {
[%emt 0:01:06]} 36. Kf4 {[%emt 0:01:53]} Rc5 {[%emt 0:07:38]} 37. Nxc4 {
[%emt 0:01:21]} Rec8 {[%emt 0:00:06]} 38. Nb6 {[%emt 0:01:37]} Be5+ {[%emt 0:
00:22]} 39. Ke3 {[%emt 0:02:00]} Rc3+ {[%emt 0:00:02]} 40. Kd2 {[%emt 0:00:03]}
Rxc2+ {[%emt 0:00:44]} 41. Kd1 {[%emt 0:00:05]} R8c3 {[%emt 0:00:14]} 42. Nd5 {
[%emt 0:02:54]} Rxa2 {[%emt 0:01:00]} 43. Nxc3 {[%emt 0:00:05]} Bxc3 {[%emt 0:
00:04]} 44. Re2 {[%emt 0:00:03]} Rxa3 {[%emt 0:00:20]} 45. Re3 {[%emt 0:00:10]}
a5 {[%emt 0:00:33]} 46. Kc2 {[%emt 0:00:55]} Bb4 {[%emt 0:00:07]} 47. Rxa3 {
[%emt 0:00:06]} Bxa3 {[%emt 0:00:03]} 48. Kd3 {[%emt 0:00:10]} Bb4 {[%emt 0:00:
04]} 49. Kd4 {[%emt 0:00:55]} Kg7 {[%emt 0:00:05]} 50. Kd5 {[%emt 0:00:58]} Ne6
{[%emt 0:00:09]} 51. g3 {[%emt 0:00:05]} Kf6 {[%emt 0:00:27]} 52. Rc1 {[%emt 0:
01:37]} h5 {[%emt 0:00:07]} 53. Rc6 {[%emt 0:01:07]} Be1 {[%emt 0:00:34]} 54.
Ra6 {[%emt 0:00:47]} Kg7 {[%emt 0:00:04]} 55. Ra7 {[%emt 0:00:23]} Bxg3 {
[%emt 0:01:31]} 56. e5 {[%emt 0:00:30]} Be1 {[%emt 0:00:04]} 57. Kd6 {[%emt 0:
00:13]} h4 {[%emt 0:00:36]} 58. Ke7 {[%emt 0:00:27]} Ng5 {[%emt 0:00:07]} 59.
Ke8 {[%emt 0:00:06]} Kg8 {[%emt 0:00:25]} 60. Ke7 {[%emt 0:00:20]} Bb4+ {
[%emt 0:00:04]} 61. Ke8 {[%emt 0:00:08]} Bc3 {[%emt 0:00:13]} 62. Ke7 {[%emt 0:
01:10]} Bxe5 {[%emt 0:01:53]} 63. Rxa5 {[%emt 0:00:05]} f6 {[%emt 0:00:04]} 64.
Ra3 {[%emt 0:00:23]} Kg7 {[%emt 0:00:05]} 65. Kd7 {[%emt 0:00:07]} Bg3 {
[%emt 0:00:09]} 66. Ke8 {[%emt 0:00:50]} Nxh3 {[%emt 0:00:08]} 67. Ra7+ {
[%emt 0:00:04]} Kh6 {[%emt 0:00:03]} 68. Kf7 {[%emt 0:00:06]} Be5 {[%emt 0:00:
07]} 69. Kg8 {[%emt 0:00:14]} Kg5 {[%emt 0:00:11]} 70. Kh7 {[%emt 0:00:25]} Nf2
{[%emt 0:00:12]} 71. Rg7 {[%emt 0:00:05]} h3 {[%emt 0:00:19]} 72. Rxg6+ {
[%emt 0:00:17]} Kf5 {[%emt 0:00:04]} 0-1

[Event "Moscow-Open 2021_A"]
[Site "Moscow, Russia"]
[Date "2021.02.20"]
[Round "1.4"]
[White "Lobanov, Sergei"]
[Black "Borisov, Yury"]
[Result "1-0"]
[ECO "B42"]
[WhiteElo "2516"]
[BlackElo "1972"]
[Annotator "zimin"]
[PlyCount "53"]
[EventDate "2021.??.??"]
[TimeControl "90+30"]
[WhiteClock "1:22:07"]
[BlackClock "1:23:25"]

{[%evp 0,42,30,13,47,47,66,49,37,22,95,49,79,70,129,119,124,101,89,93,93,39,
125,115,147,94,110,119,94,100,192,246,273,245,249,220,228,228,273,312,229,250,
381,316,321]} 1. e4 {[%emt 0:00:06]} c5 2. Nf3 e6 3. d4 cxd4 4. Nxd4 a6 5. Bd3
Qc7 6. O-O {[%emt 0:00:00]} b5 {[%emt 0:00:00]} 7. a4 {[%emt 0:00:00]} b4 {
[%emt 0:00:00]} 8. Nd2 {[%emt 0:00:00]} Nf6 {[%emt 0:00:00]} 9. Nc4 {[%emt 0:
00:00]} Bb7 {[%emt 0:04:42]} 10. e5 Nd5 11. Qg4 g6 12. Bg5 Nc6 13. Nxc6 Bxc6
14. Qg3 f5 15. exf6 d6 16. h4 O-O-O 17. a5 Kb8 18. Nb6 Qb7 19. Nxd5 Bxd5 20. f7
Be7 21. Bxa6 Qa7 22. Bxe7 Qxe7 23. Ra4 Qxf7 24. Rxb4+ Kc7 25. Qc3+ Kd7 26. Bb5+
Ke7 {[%emt 0:00:00]} 27. Qc7+ {[%emt 0:00:00]} 1-0

[Event "Moscow-Open 2021_A"]
[Site "Moscow, Russia"]
[Date "2021.02.20"]
[Round "1.5"]
[White "Kim, Andrey"]
[Black "Maiorov, Nikita"]
[Result "0-1"]
[ECO "E04"]
[WhiteElo "1971"]
[BlackElo "2495"]
[Annotator "zimin"]
[PlyCount "68"]
[EventDate "2021.??.??"]
[TimeControl "90+30"]
[WhiteClock "1:30:57"]
[BlackClock "1:17:48"]

{[%evp 0,68,30,30,30,-6,-6,-19,-32,-27,-27,-48,4,-7,38,14,37,35,34,25,23,24,25,
18,27,27,27,25,25,31,23,0,0,0,12,34,23,6,6,6,2,0,5,-18,-19,-9,-11,-65,-65,-65,
-57,-57,-57,-66,-56,-75,-40,-207,-211,-198,-213,-302,-345,-331,-349,-360,-359,
-377,-371,-377,-358]} 1. d4 Nf6 2. c4 e6 3. g3 d5 4. Nf3 dxc4 5. Bg2 a6 6. Ne5
Bb4+ 7. Nc3 Nd5 8. Bd2 Nb6 9. e3 N8d7 10. f4 O-O 11. O-O c5 12. Ne4 Bxd2 13.
Qxd2 cxd4 14. exd4 Nf6 15. Nc5 Nbd5 16. Nxc4 b6 17. Ne4 Rb8 18. Nxf6+ Nxf6 19.
Rad1 Bb7 20. Ne3 Nd5 21. Ng4 Re8 22. f5 f6 23. Rde1 exf5 24. Rxe8+ Qxe8 25.
Rxf5 Qe6 26. Qf2 Kh8 27. h3 Ne7 28. Rh5 Bxg2 29. Kxg2 Qe4+ 30. Kh2 Qg6 31. Rh4
Nf5 32. d5 Nxh4 33. gxh4 Qd3 34. h5 {[%emt 0:00:00]} h6 {[%emt 0:00:00]} 0-1

[Event "Moscow-Open 2021_A"]
[Site "Moscow, Russia"]
[Date "2021.02.20"]
[Round "1.6"]
[White "Iljiushenok, Ilia"]
[Black "Shinkarov, Artem"]
[Result "1-0"]
[ECO "D37"]
[WhiteElo "2534"]
[BlackElo "1978"]
[Annotator "zimin"]
[PlyCount "85"]
[EventDate "2021.??.??"]
[TimeControl "90+30"]
[WhiteClock "1:30:57"]
[BlackClock "1:17:48"]

{[%evp 0,39,30,23,30,30,30,30,15,21,88,59,61,35,38,38,42,35,39,60,32,41,55,27,
27,38,39,41,54,37,33,16,46,8,100,75,87,90,98,104,86,105]} 1. d4 {[%emt 0:00:00]
} Nf6 {[%emt 0:00:00]} 2. Bf4 {[%emt 0:00:00]} d5 {[%emt 0:00:00]} 3. e3 {
[%emt 0:00:00]} e6 {[%emt 0:00:00]} 4. Nf3 {[%emt 0:00:00]} c5 {[%emt 0:00:00]}
5. Be2 {[%emt 0:00:00]} Nc6 {[%emt 0:00:00]} 6. O-O {[%emt 0:00:00]} Bd6 {
[%emt 0:00:00]} 7. dxc5 {[%emt 0:00:00]} Bxc5 {[%emt 0:00:00]} 8. c4 {[%emt 0:
00:00]} O-O {[%emt 0:00:00]} 9. Nc3 {[%emt 0:00:00]} a6 {[%emt 0:00:00]} 10.
Rc1 {[%emt 0:00:00]} d4 {[%emt 0:00:00]} 11. Na4 {[%emt 0:00:00]} Ba7 {[%emt 0:
00:00]} 12. c5 {[%emt 0:00:00]} dxe3 {[%emt 0:00:00]} 13. Bxe3 {[%emt 0:00:00]}
Nd5 {[%emt 0:00:00]} 14. Qb3 {[%emt 0:00:00]} Nxe3 {[%emt 0:00:00]} 15. Qxe3 {
[%emt 0:00:00]} Qf6 {[%emt 0:00:00]} 16. Bd3 {[%emt 0:00:00]} Bd7 {[%emt 0:00:
00]} 17. Bxh7+ {[%emt 0:00:00]} Kxh7 {[%emt 0:00:00]} 18. Qd3+ {[%emt 0:00:00]}
g6 {[%emt 0:00:00]} 19. Qxd7 {[%emt 0:00:00]} Rab8 {[%emt 0:00:00]} 20. Qd2 {
[%emt 0:00:00]} Rbd8 {[%emt 0:00:00]} 21. Qe3 {[%emt 0:00:00]} Bb8 {[%emt 0:00:
00]} 22. Rcd1 {[%emt 0:00:00]} e5 {[%emt 0:00:00]} 23. Nb6 {[%emt 0:00:00]}
Rxd1 {[%emt 0:00:00]} 24. Rxd1 {[%emt 0:00:00]} Rd8 {[%emt 0:00:00]} 25. Rxd8 {
[%emt 0:00:00]} Qxd8 {[%emt 0:00:00]} 26. Qd2 {[%emt 0:00:00]} Nd4 {[%emt 0:00:
00]} 27. Qd3 {[%emt 0:00:00]} Kg7 {[%emt 0:00:00]} 28. Nxd4 {[%emt 0:00:00]}
exd4 {[%emt 0:00:00]} 29. b4 {[%emt 0:00:00]} Kg8 {[%emt 0:00:00]} 30. g3 {
[%emt 0:00:00]} Bc7 {[%emt 0:00:00]} 31. Nc4 {[%emt 0:00:00]} Qd5 {[%emt 0:00:
00]} 32. a3 {[%emt 0:00:00]} a5 {[%emt 0:00:00]} 33. h4 {[%emt 0:00:00]} axb4 {
[%emt 0:00:00]} 34. axb4 {[%emt 0:00:00]} Qe6 {[%emt 0:00:00]} 35. Nd2 {
[%emt 0:00:00]} Be5 {[%emt 0:00:00]} 36. Qe4 {[%emt 0:00:00]} Bf6 {[%emt 0:00:
00]} 37. Qxe6 {[%emt 0:00:00]} fxe6 {[%emt 0:00:00]} 38. Ne4 {[%emt 0:00:00]}
Be7 {[%emt 0:00:00]} 39. Kf1 {[%emt 0:00:00]} e5 {[%emt 0:00:00]} 40. Nd6 {
[%emt 0:00:00]} Bxd6 {[%emt 0:00:00]} 41. cxd6 {[%emt 0:00:00]} Kf7 {[%emt 0:
00:00]} 42. g4 {[%emt 0:00:00]} Ke6 {[%emt 0:00:00]} 43. h5 {[%emt 0:00:00]}
1-0

[Event "Moscow-Open 2021_A"]
[Site "Moscow, Russia"]
[Date "2021.02.21"]
[Round "2.1"]
[White "Babakekhyan, Artem"]
[Black "Bocharov, Ivan"]
[Result "1/2-1/2"]
[ECO "A07"]
[WhiteElo "2181"]
[BlackElo "2568"]
[Annotator "zimin"]
[PlyCount "82"]
[EventDate "2021.??.??"]
[TimeControl "90+30"]
[WhiteClock "0:04:28"]
[BlackClock "0:53:32"]

{[%evp 0,82,26,26,28,-5,45,36,46,28,25,11,39,38,23,25,41,35,39,35,32,42,27,15,
8,5,-2,4,13,13,28,0,18,-40,-40,-54,-40,-41,-1,-21,-62,-70,-26,-74,-66,-60,4,
-90,68,52,56,41,50,55,57,59,74,88,118,132,131,131,131,125,125,98,111,119,118,
102,113,107,86,105,133,113,119,120,129,-14,-16,-1,5,0,0]} 1. Nf3 {[%emt 0:00:
22]} d5 {[%emt 0:00:00]} 2. g3 {[%emt 0:00:00]} c6 {[%emt 0:00:00]} 3. Bg2 {
[%emt 0:00:00]} Bg4 {[%emt 0:00:00]} 4. O-O {[%emt 0:00:00]} Nd7 {[%emt 0:00:
00]} 5. h3 {[%emt 0:00:00]} Bh5 {[%emt 0:00:00]} 6. d4 {[%emt 0:00:00]} e6 {
[%emt 0:00:00]} 7. c4 {[%emt 0:00:00]} Ngf6 {[%emt 0:00:00]} 8. cxd5 {[%emt 0:
00:00]} exd5 {[%emt 0:00:00]} 9. Qb3 {[%emt 0:00:00]} Nb6 {[%emt 0:00:00]} 10.
a4 {[%emt 0:00:00]} a5 {[%emt 0:00:00]} 11. Ne5 {[%emt 0:00:00]} Bb4 {[%emt 0:
00:00]} 12. g4 {[%emt 0:00:00]} Bg6 {[%emt 0:00:00]} 13. Bg5 {[%emt 0:00:00]}
Qd6 {[%emt 0:00:00]} 14. Nc3 {[%emt 0:00:00]} Nfd7 {[%emt 0:00:00]} 15. Bf4 {
[%emt 0:00:00]} O-O {[%emt 0:00:00]} 16. Bg3 {[%emt 0:00:00]} Nxe5 {[%emt 0:00:
00]} 17. dxe5 {[%emt 0:00:00]} Qc5 {[%emt 0:00:00]} 18. Rac1 {[%emt 0:00:00]}
Qc4 {[%emt 0:00:00]} 19. Qxc4 {[%emt 0:00:00]} Nxc4 {[%emt 0:00:00]} 20. f4 {
[%emt 0:00:00]} h5 {[%emt 0:00:00]} 21. f5 {[%emt 0:00:00]} Bh7 {[%emt 0:00:00]
} 22. e4 {[%emt 0:00:00]} hxg4 {[%emt 0:00:00]} 23. hxg4 {[%emt 0:00:00]} Rae8
{[%emt 0:00:00]} 24. exd5 {[%emt 0:00:00]} Nxe5 {[%emt 0:00:00]} 25. Bxe5 {
[%emt 0:00:00]} Rxe5 {[%emt 0:00:00]} 26. dxc6 {[%emt 0:00:00]} bxc6 {[%emt 0:
00:00]} 27. Bxc6 {[%emt 0:00:00]} g6 {[%emt 0:00:00]} 28. Nd5 {[%emt 0:00:00]}
gxf5 {[%emt 0:00:00]} 29. Nf6+ {[%emt 0:00:00]} Kg7 {[%emt 0:00:00]} 30. Nd7 {
[%emt 0:00:00]} Rfe8 {[%emt 0:00:00]} 31. Nxe5 {[%emt 0:00:00]} Rxe5 {[%emt 0:
00:00]} 32. gxf5 Bxf5 {[%emt 0:00:00]} 33. Kg2 {[%emt 0:00:00]} Be6 {[%emt 0:
00:00]} 34. Rc2 {[%emt 0:00:00]} Kf8 {[%emt 0:00:00]} 35. Rf4 {[%emt 0:00:00]}
Rg5+ {[%emt 0:00:00]} 36. Kf1 {[%emt 0:00:00]} Rh5 {[%emt 0:00:00]} 37. Bf3 {
[%emt 0:08:44]} Rg5 {[%emt 0:00:00]} 38. Rc6 {[%emt 0:02:20]} Kg7 {[%emt 0:00:
00]} 39. Rxe6 {[%emt 0:06:00]} fxe6 {[%emt 0:00:00]} 40. Rg4 {[%emt 0:00:03]}
Rxg4 {[%emt 0:00:00]} 41. Bxg4 {[%emt 0:00:03]} Kf6 {[%emt 0:00:04]} 1/2-1/2

[Event "Moscow-Open 2021_A"]
[Site "Moscow, Russia"]
[Date "2021.02.21"]
[Round "2.2"]
[White "Rozum, Ivan"]
[Black "Medzinovskiy, Petr"]
[Result "1-0"]
[ECO "E68"]
[WhiteElo "2546"]
[BlackElo "2179"]
[Annotator "zimin"]
[PlyCount "63"]
[EventDate "2021.??.??"]
[TimeControl "90+30"]
[WhiteClock "0:36:33"]
[BlackClock "0:21:01"]

{[%evp 0,63,26,24,33,-14,43,1,19,21,25,12,19,17,42,31,53,9,50,32,44,27,64,35,
44,37,44,44,36,50,50,39,83,63,90,71,92,92,82,80,129,64,236,219,278,265,278,243,
277,263,357,392,306,179,182,130,124,128,130,170,211,268,310,310,374,218]} 1.
Nf3 {[%emt 0:00:00]} Nf6 {[%emt 0:00:00]} 2. c4 {[%emt 0:00:00]} g6 {[%emt 0:
00:00]} 3. g3 {[%emt 0:00:00]} Bg7 {[%emt 0:00:00]} 4. Bg2 {[%emt 0:00:00]} O-O
{[%emt 0:00:00]} 5. d4 {[%emt 0:00:00]} d6 {[%emt 0:00:00]} 6. Nc3 {[%emt 0:00:
00]} Nbd7 {[%emt 0:00:00]} 7. O-O {[%emt 0:00:00]} e5 {[%emt 0:00:00]} 8. e4 {
[%emt 0:00:00]} a5 {[%emt 0:00:00]} 9. Be3 {[%emt 0:00:00]} exd4 {[%emt 0:00:
00]} 10. Bxd4 {[%emt 0:00:00]} c6 {[%emt 0:00:00]} 11. Qc2 {[%emt 0:00:00]} Nc5
{[%emt 0:00:00]} 12. Rad1 {[%emt 0:00:00]} Qe7 {[%emt 0:00:00]} 13. Rfe1 {
[%emt 0:00:00]} Ng4 {[%emt 0:00:00]} 14. Bxg7 {[%emt 0:00:00]} Kxg7 {[%emt 0:
00:00]} 15. b3 {[%emt 0:00:00]} Qf6 {[%emt 0:00:00]} 16. Nd4 {[%emt 0:00:00]}
Re8 {[%emt 0:00:00]} 17. f4 {[%emt 0:00:00]} h5 {[%emt 0:00:00]} 18. h3 {
[%emt 0:00:00]} Nh6 {[%emt 0:00:00]} 19. Qd2 {[%emt 0:00:00]} Ne6 {[%emt 0:00:
00]} 20. Na4 {[%emt 0:00:00]} Ra6 {[%emt 0:00:00]} 21. Nxe6+ Rxe6 {[%emt 0:00:
00]} 22. c5 {[%emt 0:00:00]} d5 {[%emt 0:00:00]} 23. Nb6 {[%emt 0:00:00]} Rxb6
{[%emt 0:00:00]} 24. cxb6 {[%emt 0:00:00]} dxe4 {[%emt 0:00:00]} 25. Qd8 {
[%emt 0:00:00]} Nf5 {[%emt 0:00:00]} 26. Qxf6+ {[%emt 0:00:00]} Rxf6 {[%emt 0:
00:00]} 27. Rd8 {[%emt 0:00:00]} Be6 {[%emt 0:00:00]} 28. Rxe4 {[%emt 0:00:00]}
Nxg3 {[%emt 0:00:00]} 29. Re3 {[%emt 0:00:00]} h4 {[%emt 0:00:00]} 30. Rb8 {
[%emt 0:00:00]} Rxf4 {[%emt 0:00:00]} 31. Rxb7 {[%emt 0:00:00]} Kf6 {[%emt 0:
00:00]} 32. Rf3 {[%emt 0:00:00]} 1-0